fUST/lending_fUST_20260403
["ID","MTS","AMOUNT","RATE_DAILY","PERIOD"]
[419484712,1775224251144,-11391.3372917,0.0002163,2]
[419484714,1775224251153,-500.0,0.00021645,2]
[419484716,1775224251162,-500.0,0.00021645,2]
[419484718,1775224251171,-238.51207484,0.00021645,2]
[419484720,1775224251181,-163.18715613,0.00021645,2]
[419484722,1775224251190,-154.0,0.00021646,2]
[419484724,1775224251199,-154.0,0.00021646,2]
[419484726,1775224251209,-293.27610939,0.00021646,2]
[419484728,1775224251218,-151.0,0.00021646,2]
[419484730,1775224251228,-151.0,0.00021646,2]
[419484732,1775224251238,-151.0,0.00021646,2]
[419484734,1775224251247,-151.0,0.00021646,2]
[419484736,1775224251256,-151.0,0.00021646,2]
[419484738,1775224251265,-151.0,0.00021646,2]
[419484740,1775224251275,-151.0,0.00021646,2]
[419484742,1775224251284,-647.0,0.00021646,2]
[419484744,1775224251293,-151.0,0.00021646,2]
[419484746,1775224251303,-647.0,0.00021646,2]
[419484748,1775224251312,-151.0,0.00021646,2]
[419484749,1775224251321,-647.0,0.00021646,2]
[419484751,1775224251330,-151.0,0.00021646,2]
[419484753,1775224251340,-647.0,0.00021646,2]
[419484755,1775224251349,-151.0,0.00021646,2]
[419484757,1775224251360,-647.0,0.00021646,2]
[419484759,1775224251369,-151.0,0.00021646,2]
[419484761,1775224251378,-647.0,0.00021646,2]
[419484763,1775224251389,-151.0,0.00021646,2]
[419484765,1775224251398,-151.0,0.00021646,2]
[419484767,1775224251408,-647.0,0.00021646,2]
[419484769,1775224251417,-151.0,0.00021646,2]
[419484771,1775224251427,-647.0,0.00021646,2]
[419484773,1775224251438,-151.0,0.00021646,2]
[419484775,1775224251447,-647.0,0.00021646,2]
[419484777,1775224251457,-151.0,0.00021646,2]
[419484779,1775224251466,-174.12053937,0.00021646,2]
[419484782,1775224251475,-151.0,0.00021646,2]
[419484785,1775224251485,-151.0,0.00021646,2]
[419484788,1775224251494,-151.0,0.00021646,2]
[419484790,1775224251504,-151.0,0.00021646,2]
[419484792,1775224251514,-151.0,0.00021646,2]
[419484794,1775224251524,-151.0,0.00021646,2]
[419484796,1775224251533,-151.0,0.00021646,2]
[419484797,1775224251543,-151.0,0.00021646,2]
[419484799,1775224251553,-151.0,0.00021646,2]
[419484801,1775224251562,-151.0,0.00021646,2]
[419484803,1775224251572,-151.0,0.00021646,2]
[419484805,1775224251581,-151.0,0.00021646,2]
[419484807,1775224251591,-151.0,0.00021646,2]
[419484809,1775224251601,-151.0,0.00021646,2]
[419484811,1775224251611,-151.0,0.00021646,2]
[419484813,1775224251620,-151.0,0.00021646,2]
[419484815,1775224251630,-199.60587589,0.00021646,2]
[419484817,1775224251639,-206.93430758,0.00021673,2]
[419484819,1775224251649,-500.0,0.00021673,2]
[419484821,1775224251659,-500.0,0.00021673,2]
[419484823,1775224251668,-250.9,0.0002169,10]
[419484825,1775224251678,-209.08,0.0002169,10]
[419484827,1775224251688,-203.97871223,0.00021699,2]
[419484829,1775224251698,-500.0,0.00021699,2]
[419484831,1775224251708,-500.0,0.00021699,2]
[419484833,1775224251717,-500.0,0.00021699,2]
[419484835,1775224251727,-500.0,0.00021699,2]
[419484837,1775224251737,-500.0,0.00021699,2]
[419484839,1775224251746,-500.0,0.00021699,2]
[419484841,1775224251756,-500.0,0.00021699,2]
[419484843,1775224251765,-571.27035357,0.00021699,2]
[419484845,1775224251774,-279.30170274,0.00021699,2]
[419484847,1775224251784,-500.0,0.00021699,2]
[419484849,1775224251793,-500.0,0.00021699,2]
[419484851,1775224251803,-500.0,0.00021699,2]
[419484853,1775224251813,-500.0,0.00021699,2]
[419484855,1775224251822,-42908.08956356,0.000217,2]
[419494435,1775225306841,500.0,0.00034764,120]
[419494436,1775225307061,503.258911,0.00034764,120]
[419494478,1775225431880,-599.0,0.0001264,2]
[419494479,1775225431890,-1000.0,0.00013699,2]
[419494480,1775225431901,-357.18571931,0.00015,2]
[419494481,1775225431911,-264.81001597,0.00018164,2]
[419494482,1775225431921,-499.999999,0.00018456,2]
[419494483,1775225431930,-283.43910859,0.00019781,2]
[419494484,1775225431942,-75.28192144,0.00019781,2]
[419494485,1775225431952,-249.35850531,0.00019781,2]
[419494531,1775225438231,-396.33934875,0.00019781,2]
[419494534,1775225438243,-400.73211,0.00019781,2]
[419494536,1775225438255,-1146.75938881,0.00020236,2]
[419494538,1775225438266,-457.52157473,0.00020236,2]
[419494542,1775225438290,-500.0,0.00020884,2]
[419494544,1775225438304,-200.0,0.00021596,2]
[419494547,1775225438318,-237.3956649,0.00021693,2]
[419494549,1775225438332,-346.79171738,0.00021777,5]
[419494551,1775225438343,-2143.31685775,0.000218,2]
[419494554,1775225438356,-184.0,0.00021822,2]
[419494556,1775225438370,-376.2150757,0.00021873,2]
[419495054,1775225443337,-123.7849243,0.00021873,2]
[419495056,1775225443349,-227.41671874,0.00021873,2]
[419495059,1775225443366,-528.58328126,0.00021873,2]
[419495061,1775225443378,-115.41671874,0.00021887,2]
[419495064,1775225443396,-41.17028126,0.00021887,2]
[419495066,1775225443406,-187.042,0.00021899,2]
[419495068,1775225443417,-19616.89213279,0.000219,2]
[419495070,1775225443430,-295.03152595,0.00021918,2]
[419495073,1775225443442,-531.05674671,0.00021918,2]
[419495075,1775225443455,-200.0,0.00021999,2]
[419495077,1775225443468,-200.0,0.00021999,2]
[419495078,1775225443480,-22788.41557099,0.00022,2]
[419495079,1775225443492,-318.0,0.00022,2]
[419495080,1775225443505,-35139.70933729,0.00022,2]
[419495081,1775225443516,-600.0,0.00022133,10]
[419495082,1775225443529,-204.60062564,0.00022415,2]
[419495083,1775225443541,-710.03987907,0.00022421,2]
[419495084,1775225443553,-152.0,0.00022426,2]
[419495086,1775225443565,-151.0,0.00022427,2]
[419495089,1775225443575,-151.0,0.00022427,2]
[419495091,1775225443586,-151.0,0.00022427,2]
[419495092,1775225443598,-151.0,0.00022427,2]
[419495093,1775225443609,-191.216083,0.00022427,2]
[419495094,1775225443621,-191.216083,0.00022427,2]
[419495095,1775225443632,-191.216083,0.00022427,2]
[419495096,1775225443646,-191.216083,0.00022427,2]
[419495097,1775225443660,-151.0,0.00022427,2]
[419495098,1775225443672,-151.0,0.00022431,2]
[419495099,1775225443684,-151.0,0.00022438,2]
[419495100,1775225443696,-151.0,0.00022438,2]
[419495101,1775225443707,-340.0,0.00022438,2]
[419495102,1775225443719,-340.0,0.00022438,2]
[419495103,1775225443732,-430.0,0.00022438,2]
[419495104,1775225443743,-430.0,0.00022438,2]
[419495105,1775225443754,-430.0,0.00022438,2]
[419495106,1775225443766,-300.0,0.00022438,2]
[419495107,1775225443778,-300.0,0.00022438,2]
[419495108,1775225443789,-300.0,0.00022438,2]
[419495109,1775225443801,-300.0,0.00022438,2]
[419495110,1775225443811,-300.0,0.00022438,2]
[419495111,1775225443823,-300.0,0.00022438,2]
[419495112,1775225443834,-300.0,0.00022438,2]
[419495113,1775225443845,-301.0,0.00022438,2]
[419495114,1775225443857,-301.0,0.00022438,2]
[419495116,1775225443868,-300.0,0.00022438,2]
[419495118,1775225443879,-300.0,0.00022438,2]
[419495120,1775225443891,-300.0,0.00022438,2]
[419495122,1775225443902,-300.0,0.00022438,2]
[419495125,1775225443913,-300.0,0.00022438,2]
[419495127,1775225443924,-300.0,0.00022438,2]
[419495129,1775225443936,-300.0,0.00022438,2]
[419495131,1775225443947,-300.0,0.00022438,2]
[419495133,1775225443958,-300.0,0.00022438,2]
[419495135,1775225443969,-300.0,0.00022438,2]
[419495137,1775225443981,-300.0,0.00022438,2]
[419495140,1775225443991,-300.0,0.00022438,2]
[419495142,1775225444002,-300.0,0.00022438,2]
[419495144,1775225444013,-300.0,0.00022438,2]
[419495146,1775225444025,-300.0,0.00022438,2]
[419495148,1775225444035,-300.0,0.00022438,2]
[419495150,1775225444046,-300.0,0.00022438,2]
[419495152,1775225444058,-300.0,0.00022438,2]
[419495169,1775225444213,-300.0,0.00022438,2]
[419495172,1775225444229,-300.0,0.00022438,2]
[419495174,1775225444238,-300.0,0.00022438,2]
[419495176,1775225444248,-504.30869842,0.0002258,2]
[419495178,1775225444258,-500.0,0.0002258,2]
[419495180,1775225444268,-1981.70265962,0.00022653,25]
[419495182,1775225444277,-1353.0,0.000228,3]
[419495184,1775225444287,-151.0,0.0002282,2]
[419495186,1775225444297,-381.17042381,0.00022893,2]
[419495188,1775225444306,-500.0,0.00022899,2]
[419495190,1775225444315,-500.0,0.00022899,2]
[419495192,1775225444325,-500.0,0.00022899,2]
[419495194,1775225444336,-500.0,0.00022899,2]
[419495196,1775225444346,-595.51119192,0.00022899,2]
[419495198,1775225444355,-500.0,0.00022899,2]
[419495200,1775225444364,-500.0,0.00022899,2]
[419495202,1775225444374,-500.0,0.00022899,2]
[419495204,1775225444384,-349.8892475,0.00022899,2]
[419495206,1775225444394,-742.4,0.000229,2]
[419495208,1775225444404,-1300.0,0.000229,2]
[419495210,1775225444413,-270.83333333,0.00023,2]
[419495212,1775225444422,-152.0,0.00023126,2]
[419495214,1775225444431,-151.0,0.00023248,2]
[419495216,1775225444441,-151.0,0.00023248,2]
[419495218,1775225444450,-1000.0,0.000233,2]
[419495220,1775225444460,-151.0,0.000233,6]
[419495222,1775225444470,-204.60062564,0.00023359,14]
[419495224,1775225444479,-1000.0,0.000234,2]
[419495226,1775225444489,-1000.0,0.000234,2]
[419495228,1775225444498,-1000.0,0.000234,2]
[419495230,1775225444508,-1000.0,0.000234,2]
[419495232,1775225444517,-151.0,0.000237,10]
[419495234,1775225444527,-2301.46151416,0.00023735,35]
[419495236,1775225444536,-317.296394,0.00023735,2]
[419495238,1775225444545,-317.296394,0.00023735,2]
[419495240,1775225444555,-317.296394,0.00023735,2]
[419495242,1775225444565,-317.296394,0.00023735,2]
[419495245,1775225444577,-160.0,0.00023761,3]
[419495247,1775225444586,-160.0,0.00023761,5]
[419495249,1775225444596,-152.0,0.00023827,2]
[419495251,1775225444606,-742.4,0.000239,2]
[419495253,1775225444615,-1304.0,0.000239,3]
[419495255,1775225444624,-151.0,0.000239,2]
[419495257,1775225444634,-28000.88693867,0.00024,7]
[419495259,1775225444644,-270.83333333,0.00024,7]
[419495261,1775225444653,-3500.0,0.00024,5]
[419495263,1775225444663,-3751.0,0.00024,2]
[419495265,1775225444672,-151.0,0.00024,9]
[419495267,1775225444682,-151.363365,0.00024,2]
[419495269,1775225444692,-151.0,0.00024,2]
[419495271,1775225444701,-144.6859808,0.00024,2]
[419495447,1775225446291,-46.5301022,0.00024,2]
[419495449,1775225446301,-191.216083,0.00024,2]
[419495451,1775225446311,-191.216083,0.00024,2]
[419495453,1775225446321,-191.216083,0.00024,2]
[419495455,1775225446330,-151.0,0.00024,2]
[419495457,1775225446340,-317.296394,0.00024,2]
[419495459,1775225446351,-317.296394,0.00024,2]
[419495461,1775225446360,-317.296394,0.00024,2]
[419495463,1775225446370,-317.296394,0.00024,2]
[419495465,1775225446380,-151.0,0.0002424,2]
[419495467,1775225446389,-151.0,0.000243,9]
[419495469,1775225446399,-204.60062564,0.00024302,60]
[419495471,1775225446409,-720.0,0.00024346,10]
[419495473,1775225446418,-460.70011607,0.00024397,2]
[419495484,1775225446509,-39.29988393,0.00024397,2]
[419495486,1775225446518,-500.0,0.00024397,2]
[419495488,1775225446528,-1030.88832325,0.00024528,2]
[419495490,1775225446538,-181.20173162,0.000246,2]
[419495492,1775225446548,-1090.795,0.000246,2]
[419495494,1775225446558,-943.15678216,0.00024635,2]
[419495496,1775225446567,-315.42866717,0.00024635,2]
[419495498,1775225446576,-1240.0,0.00024658,5]
[419495500,1775225446586,-151.0,0.00024658,2]
[419495502,1775225446595,-151.0,0.00024658,2]
[419495504,1775225446606,-151.0,0.00024658,2]
[419495506,1775225446616,-151.0,0.00024658,2]
[419495508,1775225446625,-151.0,0.00024658,2]
[419495510,1775225446635,-151.0,0.00024658,2]
[419495512,1775225446644,-206.47143818,0.00024658,2]
[419495514,1775225446654,-57.68258351,0.000247,9]
[419495517,1775225446671,-93.31741649,0.000247,9]
[419495519,1775225446682,-231.2,0.000248,30]
[419495521,1775225446692,-167.70411934,0.00024822,2]
[419503616,1775225716155,46997.0,0.00034764,120]
[419503617,1775225905692,372.61730283,0.00034762,120]
[419503702,1775226638190,-156.0,0.00013699,2]
[419503703,1775226638200,-1000.0,0.00013699,2]
[419503705,1775226638210,-152.57830414,0.00021725,2]
[419503706,1775226638220,-300.0,0.00022437,2]
[419503708,1775226638230,-300.0,0.00022438,10]
[419503710,1775226638240,-300.0,0.00022438,10]
[419503712,1775226638249,-300.0,0.00022438,10]
[419503714,1775226638258,-300.0,0.00022438,10]
[419503716,1775226638267,-300.0,0.00022438,10]
[419503718,1775226638278,-300.0,0.00022438,10]
[419503720,1775226638288,-300.0,0.00022438,10]
[419503722,1775226638297,-300.0,0.00022438,10]
[419503724,1775226638306,-300.0,0.00022438,10]
[419503726,1775226638316,-300.0,0.00022438,10]
[419503728,1775226638325,-300.0,0.00022438,10]
[419503730,1775226638334,-300.0,0.00022438,10]
[419503732,1775226638344,-300.0,0.00022438,10]
[419503734,1775226638353,-300.0,0.00022438,10]
[419503736,1775226638362,-300.0,0.00022438,10]
[419503738,1775226638372,-150.2,0.00022438,2]
[419503740,1775226638381,-600.0,0.00022886,10]
[419503742,1775226638390,-270.83333333,0.00023,2]
[419503744,1775226638399,-1072.75249197,0.00023415,35]
[419503746,1775226638408,-1000.0,0.00023699,30]
[419503748,1775226638417,-151.0,0.00024067,2]
[419503750,1775226638426,-196.2850388,0.00024075,2]
[419503752,1775226638436,-197.4649555,0.00024085,2]
[419503754,1775226638446,-1240.0,0.00024658,5]
[419503756,1775226638456,-151.0,0.000247,7]
[419503758,1775226638465,-151.0,0.000247,9]
[419503760,1775226638475,-292.1349431,0.00024758,2]
[419503762,1775226638484,-169.85830784,0.00024758,2]
[419503764,1775226638493,-18636.67969007,0.0002488,2]
[419503766,1775226638509,-734.368,0.0002488,2]
[419504235,1775226643285,-17070.21259345,0.0002488,2]
[419504237,1775226643295,-174.23,0.0002489,10]
[419504238,1775226643306,-196.2501009,0.00024896,2]
[419504240,1775226643316,-500.0,0.00024899,2]
[419504242,1775226643325,-500.0,0.00024899,2]
[419504245,1775226643335,-500.0,0.00024899,2]
[419504247,1775226643345,-500.0,0.00024899,2]
[419504249,1775226643355,-418.41198118,0.00024899,2]
[419504251,1775226643364,-500.0,0.00024899,2]
[419504253,1775226643374,-494.92247325,0.00024899,2]
[419504255,1775226643383,-500.0,0.00024899,2]
[419504256,1775226643392,-500.0,0.00024899,2]
[419504259,1775226643402,-500.0,0.00024899,2]
[419504261,1775226643412,-742.4,0.000249,2]
[419504262,1775226643421,-37275.49510077,0.000249,2]
[419504555,1775226646360,-379.07505948,0.000249,2]
[419504562,1775226646417,-11954.60366944,0.000249,2]
[419511205,1775226716312,21668.568728,0.00028185,120]
[419511818,1775226724145,10691.016377,0.00028185,120]
[419516783,1775226801095,32049.175995,0.00027621,120]
[419516784,1775226821827,16512.355842,0.00027648,120]
[419516793,1775227040509,500.0,0.00034763,120]
[419516794,1775227040729,500.0,0.00034763,120]
[419516795,1775227040954,500.0,0.00034763,120]
[419516796,1775227041193,500.0,0.00034763,120]
[419516797,1775227041413,500.0,0.00034763,120]
[419516798,1775227041650,500.0,0.00034763,120]
[419516799,1775227041881,500.0,0.00034763,120]
[419516800,1775227042102,500.0,0.00034763,120]
[419516801,1775227042328,500.0,0.00034763,120]
[419516802,1775227042547,500.0,0.00034763,120]
[419516803,1775227042771,207.87194724,0.00034763,120]
[419516805,1775227223548,19501.0,0.00034763,120]
[419516806,1775227350227,494.0,0.00034763,120]
[419516807,1775227542880,10011.30036,0.00034763,120]
[419516808,1775227700625,158.0,0.000328,120]
[419516850,1775227832168,-674.54536138,0.00013699,2]
[419516851,1775227832180,-325.45463862,0.00013699,2]
[419516852,1775227832190,-116.25048173,0.00022429,2]
[419516853,1775227834675,510.533,0.0003,120]
[419517691,1775227846583,-77.37151827,0.00022429,2]
[419517693,1775227846593,-262.0,0.00022875,2]
[419517695,1775227846602,-300.0,0.00022876,10]
[419517697,1775227846612,-300.0,0.00022876,10]
[419517699,1775227846623,-300.0,0.00022876,10]
[419517701,1775227846632,-300.0,0.00022876,10]
[419517703,1775227846642,-300.0,0.00022876,10]
[419517705,1775227846651,-300.0,0.00022876,10]
[419517707,1775227846661,-300.0,0.00022876,10]
[419517709,1775227846671,-300.0,0.00022876,10]
[419517711,1775227846681,-300.0,0.00022876,10]
[419517713,1775227846691,-300.0,0.00022876,10]
[419517715,1775227846700,-300.0,0.00022876,10]
[419517717,1775227846710,-180.10625048,0.00022876,10]
[419526068,1775227979181,295.0,0.00034763,120]
[419526069,1775227984483,158.0,0.000328,120]
[419526073,1775228831847,31799.0,0.00034823,120]
[419526086,1775228970603,16502.87146149,8.48e-05,2]
[419526165,1775229038716,-5000.0,0.00013562,2]
[419526167,1775229038725,-1000.0,0.00013699,2]
[419526169,1775229038735,-1435.84199129,0.00014175,2]
[419526171,1775229038744,-151.0,0.00014795,2]
[419526173,1775229038754,-2846.21844742,0.00015677,2]
[419526175,1775229038764,-152.0,0.00016172,2]
[419526177,1775229038774,-152.0,0.00017172,2]
[419526179,1775229038783,-3091.07925553,0.00017179,2]
[419526181,1775229038793,-152.0,0.00018172,2]
[419526183,1775229038803,-300.0,0.0001868,2]
[419526185,1775229038812,-3318.20707147,0.00018681,2]
[419526187,1775229038822,-162.5,0.00018681,2]
[419526189,1775229038831,-300.0,0.00019054,2]
[419526191,1775229038841,-300.0,0.00019054,2]
[419526193,1775229038850,-300.0,0.00019054,2]
[419526195,1775229038859,-300.0,0.00019054,2]
[419526197,1775229038869,-300.0,0.00019054,2]
[419526199,1775229038879,-300.0,0.00019054,2]
[419526201,1775229038888,-300.0,0.00019054,2]
[419526203,1775229038898,-300.0,0.00019054,2]
[419526205,1775229038907,-300.0,0.00019054,2]
[419526207,1775229038916,-300.0,0.00019054,2]
[419526209,1775229038926,-300.0,0.00019054,2]
[419526211,1775229038935,-300.0,0.00019054,2]
[419526213,1775229038945,-300.0,0.00019054,2]
[419526215,1775229038955,-300.0,0.00019054,2]
[419526217,1775229038964,-300.0,0.00019054,2]
[419526219,1775229038974,-162.5,0.00019054,2]
[419526221,1775229038984,-157.0,0.00019172,2]
[419526223,1775229038993,-600.0,0.00019434,2]
[419526225,1775229039003,-3545.33488753,0.00020183,9]
[419526227,1775229039012,-420.0,0.00020368,2]
[419526229,1775229039022,-500.0,0.000204,2]
[419526231,1775229039031,-500.0,0.000204,2]
[419526233,1775229039041,-585.94083427,0.0002055,2]
[419526234,1775229039050,-285.69934775,0.0002055,2]
[419526236,1775229039060,-500.0,0.0002055,2]
[419526238,1775229039070,-160.0,0.000209,2]
[419526240,1775229039081,-1000.0,0.00020948,2]
[419526242,1775229039091,-1000.0,0.00020948,2]
[419526244,1775229039100,-151.0,0.00021233,2]
[419526246,1775229039110,-720.0,0.00021377,10]
[419526248,1775229039120,-544.50759821,0.00021496,2]
[419526251,1775229039131,-1000.0,0.000217,2]
[419526253,1775229039140,-246.550893,0.000218,2]
[419526254,1775229039149,-1000.0,0.000218,2]
[419526256,1775229039159,-1000.0,0.000218,2]
[419526258,1775229039168,-506.00898444,0.00021873,2]
[419526260,1775229039178,-500.0,0.00021873,2]
[419526262,1775229039187,-500.0,0.00021873,2]
[419526264,1775229039197,-500.0,0.00021873,2]
[419526266,1775229039206,-500.0,0.00021873,2]
[419526268,1775229039216,-517.19822348,0.00021873,2]
[419526270,1775229039225,-500.0,0.00021873,2]
[419526273,1775229039236,-500.0,0.00021873,2]
[419526275,1775229039246,-500.0,0.00021873,2]
[419526277,1775229039256,-500.0,0.00021873,2]
[419526279,1775229039266,-162.5,0.00021873,2]
[419526280,1775229039276,-871.19,0.0002189,10]
[419526283,1775229039287,-3166.14455648,0.00021899,2]
[419526285,1775229039298,-255541.14302316,0.000219,2]
[419526286,1775229039308,-160.0,0.000219,2]
[419526289,1775229039318,-216.67,0.000219,2]
[419526291,1775229039329,-162.72523058,0.000219,2]
[419526293,1775229039339,-151.0,0.00021918,2]
[419526295,1775229039348,-606.716702,0.00021918,2]
[419526297,1775229039358,-606.716702,0.00021918,2]
[419526299,1775229039368,-606.716702,0.00021918,2]
[419526301,1775229039377,-606.716702,0.00021918,2]
[419526303,1775229039387,-151.0,0.00021918,2]
[419526305,1775229039397,-151.0,0.00021918,2]
[419526306,1775229039406,-151.0,0.00021918,2]
[419526308,1775229039416,-151.0,0.00021918,2]
[419526310,1775229039426,-151.0,0.00021918,2]
[419526312,1775229039435,-151.0,0.00021918,2]
[419526314,1775229039445,-151.0,0.00021918,2]
[419526316,1775229039456,-151.0,0.00021918,2]
[419526318,1775229039468,-151.0,0.00021918,2]
[419526320,1775229039478,-151.0,0.00021918,2]
[419526322,1775229039487,-192.884505,0.00021918,2]
[419526324,1775229039497,-192.884505,0.00021918,2]
[419526326,1775229039506,-192.884505,0.00021918,2]
[419526329,1775229039516,-192.884505,0.00021918,2]
[419526331,1775229039526,-192.884505,0.00021918,2]
[419526333,1775229039536,-192.884505,0.00021918,2]
[419526335,1775229039545,-192.884505,0.00021918,2]
[419526337,1775229039554,-192.884505,0.00021918,2]
[419526339,1775229039563,-253.837115,0.00021918,2]
[419526341,1775229039573,-253.837115,0.00021918,2]
[419526343,1775229039582,-253.837115,0.00021918,2]
[419526345,1775229039591,-253.837115,0.00021918,2]
[419526347,1775229039600,-253.837115,0.00021918,2]
[419526349,1775229039609,-253.837115,0.00021918,2]
[419526351,1775229039619,-253.837115,0.00021918,2]
[419526353,1775229039628,-253.837115,0.00021918,2]
[419526355,1775229039638,-567.343277,0.00021918,2]
[419526357,1775229039647,-567.343277,0.00021918,2]
[419526359,1775229039657,-567.343277,0.00021918,2]
[419526361,1775229039668,-567.343277,0.00021918,2]
[419526363,1775229039677,-187.042,0.00021999,2]
[419526365,1775229039687,-43094.0,0.00022,2]
[419526367,1775229039696,-151.0,0.00022,2]
[419526369,1775229039706,-606.716702,0.00022,2]
[419526371,1775229039715,-606.716702,0.00022,2]
[419526373,1775229039725,-606.716702,0.00022,2]
[419526375,1775229039734,-606.716702,0.00022,2]
[419526377,1775229039744,-160.262171,0.00022,2]
[419526379,1775229039753,-151.0,0.00022,2]
[419526381,1775229039763,-151.0,0.00022,2]
[419526383,1775229039773,-151.0,0.00022,2]
[419526385,1775229039782,-151.0,0.00022,2]
[419526387,1775229039791,-192.884505,0.00022,2]
[419526389,1775229039801,-192.884505,0.00022,2]
[419526391,1775229039810,-192.884505,0.00022,2]
[419526393,1775229039820,-192.884505,0.00022,2]
[419526395,1775229039830,-253.837115,0.00022,2]
[419526397,1775229039839,-253.837115,0.00022,2]
[419526399,1775229039848,-253.837115,0.00022,2]
[419526401,1775229039857,-253.837115,0.00022,2]
[419526403,1775229039866,-1204632.00205512,0.00022,2]
[419526405,1775229039879,-2957.94987597,0.00022,2]
[419526407,1775229039890,-25314.72309898,0.00022,2]
[419526564,1775229041456,-469.07870949,0.00013426,2]
[419526566,1775229041468,-752.23301139,0.00013426,2]
[419526819,1775229043790,-3094.9319523,0.00013426,2]
[419527090,1775229046713,-683.75632682,0.00013426,2]
[419527091,1775229046723,-642.82544363,0.00020977,3]
[419527092,1775229046732,-261.371,0.00021077,2]
[419527093,1775229046742,-9653.74077061,0.00022,2]
[419527110,1775229046926,-1486.5755842,0.00022,2]
[419527112,1775229046936,-567.343277,0.00022,2]
[419527114,1775229046945,-567.343277,0.00022,2]
[419527116,1775229046954,-567.343277,0.00022,2]
[419527118,1775229046963,-567.343277,0.00022,2]
[419527120,1775229046973,-6958.7617532,0.00022096,2]
[419527122,1775229046982,-253.837115,0.00022264,2]
[419527124,1775229046991,-253.837115,0.00022264,2]
[419527126,1775229047000,-253.837115,0.00022264,2]
[419527127,1775229047010,-253.837115,0.00022264,2]
[419527129,1775229047019,-1006.36458722,0.00022421,2]
[419527131,1775229047028,-1000.0,0.00022421,2]
[419527133,1775229047037,-1000.0,0.00022421,2]
[419527135,1775229047047,-502.57896594,0.00022421,2]
[419527137,1775229047056,-567.343277,0.00022421,2]
[419527139,1775229047065,-567.343277,0.00022421,2]
[419527141,1775229047075,-567.343277,0.00022421,2]
[419527143,1775229047084,-567.343277,0.00022421,2]
[419527145,1775229047093,-199.731933,0.00022428,2]
[419527147,1775229047103,-151.0,0.00022428,2]
[419527149,1775229047112,-280.576009,0.00022428,2]
[419527151,1775229047122,-151.0,0.00022428,2]
[419527153,1775229047131,-151.0,0.00022428,2]
[419527155,1775229047140,-151.0,0.00022428,2]
[419527157,1775229047150,-151.0,0.00022428,2]
[419527159,1775229047160,-196.771344,0.00022428,2]
[419527161,1775229047170,-192.884505,0.00022428,2]
[419527163,1775229047179,-192.884505,0.00022428,2]
[419527165,1775229047188,-192.884505,0.00022428,2]
[419527167,1775229047198,-192.884505,0.00022428,2]
[419527169,1775229047208,-643.0,0.00022429,2]
[419527171,1775229047217,-2203.0,0.00022429,2]
[419527173,1775229047227,-160.0,0.000229,2]
[419527175,1775229047236,-200.0,0.000229,2]
[419527177,1775229047245,-1500.0,0.00022968,2]
[419527179,1775229047254,-1500.0,0.00022968,2]
[419527181,1775229047264,-270.83333333,0.00023,2]
[419527183,1775229047273,-156.8758354,0.00023021,2]